Workbook

Sheet Introduction

Sheet Calculator
B1: Lease Liability and ROU Asset Calculator
B3: Incremental Borrowing Rate | C3: 0.05
B5: Prepaid Lease Payment
B6: Initial Direct Costs
B7: Lease Incentives
B9: Lease Term | C9: 21
D10: Lease Liability | E10: =D1218 -> 100755.5408
B11: Payment Timing | C11: In Advance
D12: ROU Asset | E12: =E10+C5+C6-C7 -> 100755.5408
B13: Periods | C13: Months
B15: Period Number | C15: Period Payment | D15: Present Value
B16: =IF(C11="In Advance",0,1) -> 0 | C16: 5000 | D16: =IF(IF($C$11="In Advance",B16+1,B16)<=$C$9,PV(IF($C$13="Months",$C$3/12,IF($C$13="Quarters",$C$3/4,$C$3)),B16,0,-C16,0),0) -> 5000
B17: =B16+1 -> 1 | C17: 5000 | D17: =IF(IF($C$11="In Advance",B17+1,B17)<=$C$9,PV(IF($C$13="Months",$C$3/12,IF($C$13="Quarters",$C$3/4,$C$3)),B17,0,-C17,0),0) -> 4979.253112
B18: =B17+1 -> 2 | C18: 5000 | D18: 4958.592311
B19: 3 | C19: 5000 | D19: 4938.017239
B20: 4 | C20: 5000 | D20: 4917.527541
B21: 5 | C21: 5000 | D21: 4897.122862
B22: 6 | C22: 5000 | D22: 4876.80285
B23: 7 | C23: 5000 | D23: 4856.567154
B24: 8 | C24: 5000 | D24: 4836.415423
B25: 9 | C25: 5000 | D25: 4816.347309
B26: 10 | C26: 5000 | D26: 4796.362466
B27: 11 | C27: 5000 | D27: 4776.460547
B28: 12 | C28: 5000 | D28: 4756.641208
B29: 13 | C29: 5000 | D29: 4736.904108
B30: 14 | C30: 5000 | D30: 4717.248904
B31: 15 | C31: 5000 | D31: 4697.675257
B32: 16 | C32: 5000 | D32: 4678.182829
B33: 17 | C33: 5000 | D33: 4658.771282
B34: 18 | C34: 5000 | D34: 4639.44028
B35: 19 | C35: 5000 | D35: 4620.189491
B36: 20 | C36: 5000 | D36: 4601.01858
B37: 21 | C37: 10000 | D37: 0
B38: 22 | C38: 10000 | D38: 0
B39: 23 | C39: 10000 | D39: 0
B40: 24 | C40: 10000 | D40: 0
B41: 25 | C41: 10000 | D41: 0
B42: 26 | C42: 10000 | D42: 0
B43: 27 | C43: 10000 | D43: 0
B44: 28 | C44: 10000 | D44: 0
B45: 29 | C45: 10000 | D45: 0
B46: 30 | C46: 10000 | D46: 0
B47: 31 | C47: 10000 | D47: 0
B48: 32 | C48: 10000 | D48: 0
B49: 33 | C49: 10000 | D49: 0
B50: 34 | C50: 10000 | D50: 0
B51: 35 | C51: 10000 | D51: 0
B52: 36 | C52: 10000 | D52: 0
B53: 37 | C53: 10000 | D53: 0
B54: 38 | C54: 10000 | D54: 0
B55: 39 | C55: 10000 | D55: 0
B56: 40 | C56: 10000 | D56: 0
B57: 41 | C57: 10000 | D57: 0
B58: 42 | C58: 10000 | D58: 0
B59: 43 | C59: 10000 | D59: 0
B60: 44 | C60: 10000 | D60: 0
B61: 45 | C61: 10000 | D61: 0
B62: 46 | C62: 10000 | D62: 0
B63: 47 | C63: 10000 | D63: 0
B64: 48 | C64: 10000 | D64: 0
B65: 49 | C65: 10000 | D65: 0
B66: 50 | C66: 10000 | D66: 0
B67: 51 | C67: 10000 | D67: 0
B68: 52 | C68: 10000 | D68: 0
B69: 53 | C69: 10000 | D69: 0
B70: 54 | C70: 10000 | D70: 0
B71: 55 | C71: 10000 | D71: 0
B72: 56 | C72: 10000 | D72: 0
B73: 57 | C73: 10000 | D73: 0
B74: 58 | C74: 10000 | D74: 0
B75: 59 | C75: 10000 | D75: 0
B76: 60 | C76: 10000 | D76: 0
B77: 61 | C77: 10000 | D77: 0
B78: 62 | C78: 10000 | D78: 0
B79: 63 | C79: 10000 | D79: 0
B80: 64 | C80: 10000 | D80: 0
B81: 65 | C81: 10000 | D81: =IF(IF($C$11="In Advance",B81+1,B81)<=$C$9,PV(IF($C$13="Months",$C$3/12,IF($C$13="Quarters",$C$3/4,$C$3)),B81,0,-C81,0),0) -> 0
B82: =B81+1 -> 66 | C82: 10000 | D82: 0
B83: 67 | C83: 10000 | D83: 0
B84: 68 | C84: 10000 | D84: 0
B85: 69 | C85: 10000 | D85: 0
B86: 70 | C86: 10000 | D86: 0
B87: 71 | C87: 10000 | D87: 0
B88: 72 | C88: 10000 | D88: 0
B89: 73 | C89: 10000 | D89: 0
B90: 74 | C90: 10000 | D90: 0
B91: 75 | C91: 10000 | D91: 0
B92: 76 | C92: 10000 | D92: 0
B93: 77 | C93: 10000 | D93: 0
B94: 78 | C94: 10000 | D94: 0
B95: 79 | C95: 10000 | D95: 0
B96: 80 | C96: 10000 | D96: 0
B97: 81 | C97: 10000 | D97: 0
B98: 82 | C98: 10000 | D98: 0
B99: 83 | C99: 10000 | D99: 0
B100: 84 | C100: 10000 | D100: 0
B101: 85 | C101: 10000 | D101: 0
B102: 86 | C102: 10000 | D102: 0
B103: 87 | C103: 10000 | D103: 0
B104: 88 | C104: 10000 | D104: 0
B105: 89 | C105: 10000 | D105: 0
B106: 90 | C106: 10000 | D106: 0
B107: 91 | C107: 10000 | D107: 0
B108: 92 | C108: 10000 | D108: 0
B109: 93 | C109: 10000 | D109: 0
B110: 94 | C110: 10000 | D110: 0
B111: 95 | C111: 10000 | D111: 0
B112: 96 | C112: 10000 | D112: 0
B113: 97 | C113: 10000 | D113: 0
B114: 98 | C114: 10000 | D114: 0
B115: 99 | C115: 10000 | D115: 0
B116: 100 | C116: 10000 | D116: 0
B117: 101 | C117: 10000 | D117: 0
B118: 102 | C118: 10000 | D118: 0
B119: 103 | C119: 10000 | D119: 0
B120: 104 | C120: 10000 | D120: 0
B121: 105 | C121: 10000 | D121: 0
B122: 106 | C122: 10000 | D122: 0
B123: 107 | C123: 10000 | D123: 0
B124: 108 | C124: 10000 | D124: 0
B125: 109 | C125: 10000 | D125: 0
B126: 110 | C126: 10000 | D126: 0
B127: 111 | C127: 10000 | D127: 0
B128: 112 | C128: 10000 | D128: 0
B129: 113 | C129: 10000 | D129: 0
B130: 114 | C130: 10000 | D130: 0
B131: 115 | C131: 10000 | D131: 0
B132: 116 | C132: 10000 | D132: 0
B133: 117 | C133: 10000 | D133: 0
B134: 118 | C134: 10000 | D134: 0
B135: 119 | C135: 10000 | D135: 0
B136: 120 | C136: 10000 | D136: 0
B137: 121 | C137: 10000 | D137: 0
B138: 122 | C138: 10000 | D138: 0
B139: 123 | C139: 10000 | D139: 0
B140: 124 | C140: 10000 | D140: 0
B141: 125 | C141: 10000 | D141: 0
B142: 126 | C142: 10000 | D142: 0
B143: 127 | C143: 10000 | D143: 0
B144: 128 | C144: 10000 | D144: 0
B145: 129 | C145: 10000 | D145: =IF(IF($C$11="In Advance",B145+1,B145)<=$C$9,PV(IF($C$13="Months",$C$3/12,IF($C$13="Quarters",$C$3/4,$C$3)),B145,0,-C145,0),0) -> 0
B146: =B145+1 -> 130 | C146: 10000 | D146: 0
B147: 131 | C147: 10000 | D147: 0
B148: 132 | C148: 10000 | D148: 0
B149: 133 | C149: 10000 | D149: 0
B150: 134 | C150: 10000 | D150: 0
B151: 135 | C151: 10000 | D151: 0
B152: 136 | C152: 10000 | D152: 0
B153: 137 | C153: 10000 | D153: 0
B154: 138 | C154: 10000 | D154: 0
B155: 139 | C155: 10000 | D155: 0
B156: 140 | C156: 10000 | D156: 0
B157: 141 | C157: 10000 | D157: 0
B158: 142 | C158: 10000 | D158: 0
B159: 143 | C159: 10000 | D159: 0
B160: 144 | C160: 10000 | D160: 0
B161: 145 | C161: 10000 | D161: 0
B162: 146 | C162: 10000 | D162: 0
B163: 147 | C163: 10000 | D163: 0
B164: 148 | C164: 10000 | D164: 0
B165: 149 | C165: 10000 | D165: 0
B166: 150 | C166: 10000 | D166: 0
B167: 151 | C167: 10000 | D167: 0
B168: 152 | C168: 10000 | D168: 0
B169: 153 | C169: 10000 | D169: 0
B170: 154 | C170: 10000 | D170: 0
B171: 155 | C171: 10000 | D171: 0
B172: 156 | C172: 10000 | D172: 0
B173: 157 | C173: 10000 | D173: 0
B174: 158 | C174: 10000 | D174: 0
B175: 159 | C175: 10000 | D175: 0
B176: 160 | C176: 10000 | D176: 0
B177: 161 | C177: 10000 | D177: 0
B178: 162 | C178: 10000 | D178: 0
B179: 163 | C179: 10000 | D179: 0
B180: 164 | C180: 10000 | D180: 0
B181: 165 | C181: 10000 | D181: 0
B182: 166 | C182: 10000 | D182: 0
B183: 167 | C183: 10000 | D183: 0
B184: 168 | C184: 10000 | D184: 0
B185: 169 | C185: 10000 | D185: 0
B186: 170 | C186: 10000 | D186: 0
B187: 171 | C187: 10000 | D187: 0
B188: 172 | C188: 10000 | D188: 0
B189: 173 | C189: 10000 | D189: 0
B190: 174 | C190: 10000 | D190: 0
B191: 175 | C191: 10000 | D191: 0
B192: 176 | C192: 10000 | D192: 0
B193: 177 | C193: 10000 | D193: 0
B194: 178 | C194: 10000 | D194: 0
B195: 179 | C195: 10000 | D195: 0
B196: 180 | C196: 10000 | D196: 0
B197: 181 | C197: 10000 | D197: 0
B198: 182 | C198: 10000 | D198: 0
B199: 183 | C199: 10000 | D199: 0
B200: 184 | C200: 10000 | D200: 0
B201: 185 | C201: 10000 | D201: 0
B202: 186 | C202: 10000 | D202: 0
B203: 187 | C203: 10000 | D203: 0
B204: 188 | C204: 10000 | D204: 0
... 1013 more rows

Sheet Terms
B2: Incremental Borrowing Rate
B3: Input the rate to apply to lease schedule. Note that this rate is applied monthly on a simple basis (Rate/12). IFRS 16 p.743 The rate of interest that causes the present value of (a) the lease payments and (b) the unguaranteed residual value to equal the sum of (i) the fair value of the underlying asset and (ii) any initial direct costs of the lessor. US GAAP 842-10-20 Rate Implicit in the Lease. The rate of interest that, at a given date, causes the aggregate present value of (a) the lease payments and (b) the amount that a lessor expects to derive from the underlying asset following the end of the lease term to equal the sum of (1) the fair value of the underlying asset minus any related investment tax credit retained and expected to be realized by the lessor and (2) any deferred initial direct costs of the lessor. However, if the rate determined in accordance with the preceding sentence is less than zero, a rate implicit in the lease of zero shall be used.
B5: Prepaid Lease Payment
B6: Values input here increase the initial balance of the ROU asset with the offset to the ROU Clearing account. IFRS 16 ¶24 The cost of the right-of-use asset shall comprise: (b) any lease payments made at or before the commencement date, less any lease incentives received; http://eifrs.ifrs.org/eifrs/bnstandards/en/IFRS16.pdf US GAAP 842-20-30-5 At the commencement date, the cost of the right-of-use asset shall consist of all of the following: b. Any lease payments made to the lessor at or before the commencement date, minus any lease incentives received https://asc.fasb.org/section&trid=77888285
B8: Initial Direct Costs
B9: Values input here increase the initial balance of the ROU asset with the offset to the ROU Clearing account. IFRS 16 p.A743 Incremental costs of obtaining a lease that would not have been incurred if the lease had not been obtained, except for such costs incurred by a manufacturer or dealer lessor in connection with a finance lease. IFRS 16 ¶24 The cost of the right-of-use asset shall comprise: (c) any initial direct costs incurred by the lessee; and http://eifrs.ifrs.org/eifrs/bnstandards/en/IFRS16.pdf US GAAP 842-20-30-5 At the commencement date, the cost of the right-of-use asset shall consist of all of the following: c. Any initial direct costs incurred by the lessee (as described in paragraphs 842-10-30-9 through 30-10). https://asc.fasb.org/section&trid=77888285
B11: Lease Incentives
B12: Values input here reduce the initial balance of the ROU asset with the offset to the ROU Clearing account. IFRS 16 p.A743 Payments made by a lessor to a lessee associated with a lease, or the reimbursement or assumption by a lessor of costs of a lessee. IFRS 16 ¶24 The cost of the right-of-use asset shall comprise: (b) any lease payments made at or before the commencement date, less any lease incentives received; http://eifrs.ifrs.org/eifrs/bnstandards/en/IFRS16.pdf US GAAP 842-20-30-5 At the commencement date, the cost of the right-of-use asset shall consist of all of the following: b. Any lease payments made to the lessor at or before the commencement date, minus any lease incentives received https://asc.fasb.org/section&trid=77888285
